[Event "Reykjavik Open 2022"]
[Site "Reykjavik"]
[Date "2022.04.08"]
[Round "4.8"]
[White "Hjartarson, Johann"]
[Black "Andersen, Mads"]
[Result "1/2-1/2"]
[ECO "D28"]
[WhiteElo "2470"]
[BlackElo "2570"]
[Annotator "TA"]
[PlyCount "177"]
[EventDate "2022.04.06"]
[EventCountry "ISL"]
[SourceTitle "playchess.com"]
[Source "ChessBase"]
[SourceQuality "1"]
[TimeControl "40/5400+30:1800+30"]

{[%evp 51,177,0,0,0,18,0,0,0,0,0,0,-17,103,86,95,96,87,39,99,88,112,111,235,237,291,278,380,327,344,362,356,356,363,355,362,313,369,314,392,314,289,295,407,293,435,442,802,795,909,798,747,688,688,397,397,397,4910,126,126,0,0,0,126,126,126,126,126,126,126,115,115,115,115,102,102,116,118,0,10,0,114,67,80,80,80,51,18,16,16,0,18,16,35,35,136,136,264,255,246,245,186,0,118,80,80,80,80,0,80,0,0,0,0,0,0,0,0,0,0,0,0,0,0,0,0,0,0,0]} 1. d4 {[%emt 0:00:31]} d5 {[%emt 0:00:15]} 2. c4 {[%emt 0:00:08]} dxc4 {[%emt 0:00:35]} 3. e3 {[%emt 0:00:36]} Nf6 {[%emt 0:00:16]} 4. Bxc4 {[%emt 0:00:24]} e6 {[%emt 0:00:09]} 5. Nf3 {[%emt 0:00:22]} c5 {[%emt 0:00:18]} 6. O-O {[%emt 0:00:22]} a6 {[%emt 0:00:11]} 7. Bd3 {[%emt 0:02:35]} Nbd7 {[%emt 0:03:08]} 8. Qe2 {[%emt 0:03:41]} b5 {[%emt 0:08:02]} 9. a4 {[%emt 0:02:04]} c4 {[%emt 0:01:38]} 10. Bc2 {[%emt 0:00:10]} Bb7 {[%emt 0:00:09]} 11. e4 {[%emt 0:01:04]} Be7 {[%emt 0:02:58]} 12. Bg5 {[%emt 0:02:11]} O-O {[%emt 0:07:03]} 13. Nbd2 {[%emt 0:05:23]} h6 {[%emt 0:07:53]} 14. Bh4 {[%emt 0:01:14]} Qb6 {[%emt 0:01:44]} 15. Rfd1 {[%emt 0:07:46]} Rfe8 {[%emt 0:05:29]} 16. e5 {[%emt 0:09:49]} Nd5 {[%emt 0:00:48]} 17. Bxe7 {[%emt 0:00:29]} Nxe7 {[%emt 0:07:01]} 18. Ne4 {[%emt 0:00:26]} Bd5 {[%emt 0:02:00]} 19. Nd6 {[%emt 0:00:48]} Rf8 {[%emt 0:03:26]} 20. Ra3 {[%emt 0:26:39]} f5 {[%emt 0:11:43]} 21. Nh4 {[%emt 0:01:57]} Nc8 {[%emt 0:08:07]} 22. Nxc8 {[%emt 0:03:34]} Rfxc8 {[%emt 0:07:38]} 23. Ng6 {[%emt 0:07:19]} Qd8 {[%emt 0:03:30]} 24. Rg3 {[%emt 0:00:57]} Nf8 {[%emt 0:03:41]} 25. Nf4 {[%emt 0:00:46]} Ra7 {[%emt 0:00:44]} 26. Qd2 {[%emt 0:02:54]} Kh8 {[%emt 0:01:03]} 27. h4 {[%emt 0:02:18]} Rd7 {[%emt 0:00:58]} 28. h5 {[%emt 0:01:52]} Qh4 {[%emt 0:06:13]} 29. axb5 {[%emt 0:04:54]} axb5 {[%emt 0:00:08]} 30. Ra3 {[%emt 0:04:16]} b4 {[%emt 0:02:11]} 31. Ra5 {[%emt 0:00:20]} c3 {[%emt 0:01:47]} (31... b3 $11 {remains equal.} 32. Bb1 (32. Bxf5 Rf7 $17) 32... Qg4) 32. bxc3 $16 {[%emt 0:00:07]} bxc3 {[%emt 0:00:14]} 33. Qe3 {[%emt 0:00:50]} Bb7 {[%emt 0:00:31]} 34. Ra3 {[%emt 0:02:42]} ({White should play} 34. Rb1 $16) 34... Rdc7 {[%emt 0:00:42]} (34... Qg4 $14) 35. Rc1 {[%emt 0:01:19]} Qe7 {[%emt 0:00:59]} 36. Rb3 {[%emt 0:00:57]} Qd7 {[%emt 0:00:52]} (36... Qd8 $16) 37. Rb6 $18 {[%emt 0:00:28]} Ba8 {[%emt 0:02:24]} 38. Bb3 {[%emt 0:00:51]} Rc6 {[%emt 0:02:25]} 39. Ba4 {[%emt 0:00:53]} Qd8 {[%emt 0:00:30]} 40. Bxc6 {[%emt 0:00:00]} Qxb6 {[%emt 0:00:00]} 41. Bxa8 {[%emt 0:00:44]} Rxa8 {[%emt 0:00:07]} 42. Qxc3 {[%emt 0:01:23]} Rd8 {[%emt 0:00:27]} 43. Rd1 {[%emt 0:01:13]} Qb7 {[%emt 0:01:24]} 44. g3 {[%emt 0:02:40]} Kg8 {[%emt 0:01:16]} 45. Qc4 {[%emt 0:02:20]} Rc8 {[%emt 0:00:49]} 46. Qd3 {[%emt 0:00:08]} Qc7 {[%emt 0:04:13]} 47. Ra1 {[%emt 0:01:10]} Qb7 {[%emt 0:01:50]} (47... Rb8 {might work better.} 48. Kg2 Re8) 48. d5 $18 {[%emt 0:01:09]} exd5 {[%emt 0:00:15]} (48... Qb2 $142) 49. Qxf5 $18 {[%emt 0:00:29]} d4 {[%emt 0:00:26]} 50. e6 {[%emt 0:00:57]} Re8 {[%emt 0:01:43]} 51. Rd1 {[%emt 0:01:03]} Nh7 {[%emt 0:02:05]} 52. Rxd4 {[%emt 0:04:04]} Ng5 {[%emt 0:03:31]} 53. Rd7 {[%emt 0:00:24]} Qc6 $2 {[%emt 0:01:48] [#]} (53... Qa8 54. Rd3 (54. Qg6 Nf3+ 55. Kf1 Nh2+ 56. Ke2 Qf3+ 57. Ke1 Qc3+ 58. Ke2 Qf3+ 59. Ke1 Qc3+ 60. Kd1 Qf3+ 61. Ne2 Qb3+ 62. Ke1 Qb4+ 63. Kd1 Qb3+ 64. Ke1 Qb4+ 65. Kd1 Qb3+ $11) 54... Rc8) 54. e7 $2 {[%emt 0:15:11]} (54. Qg6 Nf3+ 55. Kf1 Nh2+ 56. Kg1 Nf3+ 57. Kf1 Nh2+ 58. Kg1 Nf3+ $11) (54. Qf7+ $1 $18 {[%mdl 512] is the precise move to win.} Nxf7 55. exf7+ Kf8 56. Ng6+ (56. fxe8=B Qc1+ 57. Kh2 Kxe8 $11) (56. fxe8=R+ Kxe8 57. Rxg7 Qc1+ 58. Kg2 Qc6+ 59. Kh3 Qc8+ 60. Kh2 Qc5 $11) 56... Qxg6 57. hxg6) 54... Nf3+ $16 {[%emt 0:04:32]} 55. Kf1 {[%emt 0:00:24]} (55. Kh1 $1 $16 {Hoping for Nd5.} Ne5+ 56. Rd5 Rxe7 57. Kg2) 55... Nh2+ $11 {[%emt 0:02:39]} 56. Kg1 {[%emt 0:00:48]} ({White should try} 56. Ke2 $11 Qf3+ 57. Kd2 (57. Ke1 Qc3+ 58. Kd1 Qf3+ 59. Ke1 Qc3+ 60. Ke2 Qf3+ 61. Kd2 Qxf2+ 62. Kd1 Qf3+ 63. Kd2 Nf1+ 64. Ke1 Nxg3 $11) 57... Qxf2+ 58. Kd1 Qf3+ 59. Kd2 Nf1+ 60. Ke1 Nxg3 61. Qe6+ (61. Qd5+ Qxd5 62. Nxd5 Kf7 $15) 61... Kh8 62. Ng6+ Kh7 63. Nf8+ Kh8 64. Ng6+ Kh7 65. Nf8+ Kh8 66. Ng6+) 56... Nf3+ $16 {[%emt 0:00:07]} 57. Kh1 $1 {[%emt 0:01:22]} Ne5+ {[%emt 0:01:49]} 58. Rd5 {[%emt 0:00:06]} Rxe7 {[%emt 0:00:20]} 59. Kh2 {[%emt 0:01:04]} Nf3+ {[%emt 0:01:00]} 60. Kh3 {[%emt 0:00:22]} Ng5+ {[%emt 0:00:34]} 61. Kg4 {[%emt 0:00:25]} Qa8 {[%emt 0:02:37]} 62. Qd3 {[%emt 0:01:09]} Qc8+ {[%emt 0:00:46]} 63. Kh4 $1 {[%emt 0:00:10]} Re8 {[%emt 0:00:26]} 64. Qb3 {[%emt 0:01:03]} (64. Rd4 $16) 64... Kh8 {[%emt 0:00:54]} 65. Rb5 {[%emt 0:01:07]} Qd8 {[%emt 0:03:18]} (65... Re4 $2 66. Rb8 Nf3+ 67. Qxf3 $18) (65... Ne4 $11 66. Ng6+ Kh7) 66. Qd5 {[%emt 0:00:42]} (66. Qd3 $16) 66... Qf6 {[%emt 0:00:59]} (66... Nf3+ 67. Kg4 Ne5+ 68. Kh3 Qxd5 69. Nxd5 $16 (69. Rxd5 Kg8 $16)) 67. Qf5 {[%emt 0:00:48]} Qa1 {[%emt 0:01:19]} 68. Ng6+ {[%emt 0:00:55]} Kg8 {[%emt 0:00:17]} 69. Ne7+ {[%emt 0:02:46]} Kh8 {[%emt 0:00:09]} 70. Ng6+ {[%emt 0:00:03]} Kg8 $1 {[%emt 0:00:05]} 71. Rb1 {[%emt 0:01:05]} Qd4+ {[%emt 0:01:07]} 72. f4 {[%emt 0:00:20]} Nf3+ {[%emt 0:01:01]} ({Better is} 72... Qf2 $1 $14 73. Ne7+ Kh8 74. fxg5 Qh2+ 75. Kg4 Qe2+ 76. Qf3 Qxe7) 73. Kg4 $16 {[%emt 0:00:26]} Nh2+ {[%emt 0:01:26]} (73... Ng5 $16 74. Ne7+ Kh8) 74. Kh3 $18 {[%emt 0:00:11]} Nf3 {[%emt 0:00:01]} 75. Ne7+ $1 {[%emt 0:01:19]} ({But not} 75. Rb7 $6 Qc4 $16) 75... Kh8 {[%emt 0:00:10] [#]} 76. Ng6+ {[%emt 0:00:01]} (76. Kg2 $1 $18 {[%cal Rg2f3]} Nd2 (76... Qc3 77. Qd7) 77. Re1 (77. Ng6+ Kg8 $18)) 76... Kg8 $16 {[%emt 0:00:01]} 77. Rb7 {[%emt 0:00:38]} Qc4 {[%emt 0:00:57]} 78. Ne7+ {[%emt 0:01:39]} Kh8 {[%emt 0:00:07]} 79. Ng6+ {[%emt 0:00:06]} Kg8 {[%emt 0:00:07] [#]} 80. Qb5 {[%emt 0:00:44]} (80. Rb2 $1 $16) 80... Qe6+ $11 {[%emt 0:00:50]} 81. Kg2 $1 {[%emt 0:01:19]} Ne1+ {[%emt 0:00:24]} 82. Kh2 $1 {[%emt 0:00:08]} Nf3+ {[%emt 0:01:02]} 83. Kg2 {[%emt 0:00:02]} Ne1+ {[%emt 0:00:09]} 84. Kh2 $1 {[%emt 0:00:10]} Qa2+ {[%emt 0:00:55]} 85. Kh3 {[%emt 0:00:32]} Qg2+ {[%emt 0:00:08]} 86. Kg4 {[%emt 0:00:32]} Qf3+ {[%emt 0:00:09]} 87. Kh3 {[%emt 0:00:18]} Qh1+ {[%emt 0:00:27]} (87... Re3 $2 {gets mated.} 88. Rb8+) 88. Kg4 {[%emt 0:00:02]} Qf3+ {[%emt 0:00:29]} 89. Kh3 {[%emt 0:00:06]} 1/2-1/2

[Event "Reykjavik Open 2022"]
[Site "Reykjavik"]
[Date "2022.04.08"]
[Round "4.9"]
[White "Fier, Alexandr"]
[Black "Thorfinnsson, Bragi"]
[Result "1-0"]
[ECO "B89"]
[WhiteElo "2583"]
[BlackElo "2419"]
[Annotator "RC"]
[PlyCount "109"]
[EventDate "2022.04.06"]
[EventCountry "ISL"]
[SourceTitle "playchess.com"]
[Source "ChessBase"]
[SourceQuality "1"]
[TimeControl "40/5400+30:1800+30"]

1. e4 {[%emt 0:00:03]} c5 {[%emt 0:03:51]} 2. Nf3 {[%emt 0:00:07]} d6 {[%emt 0:00:14]} 3. d4 {[%emt 0:00:04]} cxd4 {[%emt 0:00:07]} 4. Nxd4 {[%emt 0:00:03]} Nf6 {[%emt 0:00:26]} 5. Nc3 {[%emt 0:00:04]} Nc6 {[%emt 0:00:37]} 6. Bc4 {[%emt 0:01:18]} e6 {[%emt 0:02:18]} 7. Be3 {[%emt 0:00:05]} Be7 {[%emt 0:02:21]} 8. Qe2 {[%emt 0:02:03]} a6 {[%emt 0:03:08]} 9. O-O-O {[%emt 0:00:09]} Qc7 {[%emt 0:00:41]} 10. Nxc6 {[%emt 0:02:52]} bxc6 {[%emt 0:03:59]} 11. g4 {[%emt 0:00:06]} Bb7 {[%emt 0:06:48]} 12. g5 {[%emt 0:01:01]} Nd7 {[%emt 0:00:38]} 13. h4 {[%emt 0:00:21]} d5 {[%emt 0:05:35]} 14. Bb3 {[%emt 0:00:38]} O-O-O {[%emt 0:05:38]} 15. exd5 {[%emt 0:02:58]} exd5 {[%emt 0:02:51]} 16. Kb1 {[%emt 0:07:38]} Bc5 {[%emt 0:07:57]} 17. Bc1 {[%emt 0:05:21]} Bd6 {[%emt 0:05:26]} 18. Na4 {[%emt 0:03:05]} Nc5 {[%emt 0:03:50]} 19. Nxc5 {[%emt 0:01:30]} Bxc5 {[%emt 0:00:06]} 20. Rhe1 {[%emt 0:00:02]} Kb8 {[%emt 0:02:38]} 21. Qf3 {[%emt 0:00:22]} Ka8 {[%emt 0:06:09]} 22. Bf4 {[%emt 0:01:11]} Qb6 {[%emt 0:03:37]} 23. Be5 {[%emt 0:01:08]} f6 {[%emt 0:04:35]} 24. gxf6 {[%emt 0:00:41]} gxf6 {[%emt 0:00:18]} 25. Bxf6 {[%emt 0:00:07]} Rdf8 {[%emt 0:00:27]} 26. Re6 {[%emt 0:00:05]} Rhg8 {[%emt 0:05:50]} 27. Bxd5 {[%emt 0:01:03]} cxd5 {[%emt 0:06:53]} 28. Rxb6 {[%emt 0:00:23]} Bxb6 {[%emt 0:00:02]} 29. Qc3 {[%emt 0:00:40]} Bxf2 {[%emt 0:00:35]} 30. Bg5 {[%emt 0:01:34]} d4 {[%emt 0:06:38]} 31. Qa5 {[%emt 0:02:22]} Be3 {[%emt 0:00:59]} 32. b3 {[%emt 0:00:43]} h6 {[%emt 0:01:46]} 33. Bxe3 {[%emt 0:03:59]} dxe3 {[%emt 0:00:06]} 34. Re1 {[%emt 0:00:02]} Re8 {[%emt 0:01:06]} 35. Re2 {[%emt 0:00:03]} Re6 {[%emt 0:00:37]} 36. Qf5 {[%emt 0:00:06]} Rge8 {[%emt 0:00:14]} 37. a4 {[%emt 0:00:03]} Be4 {[%emt 0:01:49]} 38. Qf4 {[%emt 0:00:20]} Bg6 {[%emt 0:00:05]} 39. Qc7 {[%emt 0:00:43]} Bh5 {[%emt 0:00:38]} 40. Rxe3 {[%emt 0:00:00]} Rxe3 {[%emt 0:00:00]} 41. Qc6+ {[%emt 0:00:32]} Ka7 {[%emt 0:01:18]} 42. Qc5+ {[%emt 0:00:05]} Kb7 {[%emt 0:00:10]} 43. Qxh5 {[%emt 0:00:04]} R8e6 {[%emt 0:00:20]} 44. Qd5+ {[%emt 0:00:41]} Kc7 {[%emt 0:00:41]} 45. a5 {[%emt 0:00:30]} R3e5 {[%emt 0:00:28]} 46. Qc4+ {[%emt 0:00:08]} Kb7 {[%emt 0:00:18]} 47. Kb2 {[%emt 0:00:05]} h5 {[%emt 0:00:29]} 48. Qd4 {[%emt 0:00:04]} Kc6 {[%emt 0:01:18]} 49. Qd8 {[%emt 0:00:25]} Kb7 {[%emt 0:00:08]} 50. Qd7+ {[%emt 0:00:06]} Kb8 {[%emt 0:00:04]} 51. Qd8+ {[%emt 0:00:18]} Kb7 {[%emt 0:00:05]} 52. Ka3 {[%emt 0:00:04]} Rc6 {[%emt 0:00:33]} 53. c4 {[%emt 0:00:36]} Rce6 {[%emt 0:01:43]} 54. Kb4 {[%emt 0:00:11]} Kc6 {[%emt 0:01:32]} 55. Qc8+ {[%emt 0:00:07]} 1-0

[Event "Reykjavik Open 2022"]
[Site "Reykjavik"]
[Date "2022.04.08"]
[Round "4.10"]
[White "Williams, Simon K"]
[Black "Cornette, Matthieu"]
[Result "1/2-1/2"]
[ECO "A21"]
[WhiteElo "2464"]
[BlackElo "2571"]
[Annotator "RC"]
[PlyCount "95"]
[EventDate "2022.04.06"]
[EventCountry "ISL"]
[SourceTitle "playchess.com"]
[Source "ChessBase"]
[SourceQuality "1"]
[TimeControl "40/5400+30:1800+30"]

1. c4 {[%emt 0:00:05]} e5 {[%emt 0:01:18]} 2. Nc3 {[%emt 0:00:25]} Bb4 {[%emt 0:00:42]} 3. Nd5 {[%emt 0:08:08]} Be7 {[%emt 0:00:58]} 4. d4 {[%emt 0:02:45]} exd4 {[%emt 0:00:32]} 5. Nf3 {[%emt 0:13:18]} Nf6 {[%emt 0:02:49]} 6. Nxd4 {[%emt 0:01:57]} Nxd5 {[%emt 0:01:31]} 7. cxd5 {[%emt 0:00:04]} O-O {[%emt 0:05:04]} 8. g3 {[%emt 0:03:18]} c5 {[%emt 0:03:39]} 9. Nf5 {[%emt 0:01:30]} d6 {[%emt 0:00:16]} 10. Nxe7+ {[%emt 0:01:00]} Qxe7 {[%emt 0:00:05]} 11. Bg2 {[%emt 0:00:07]} Nd7 {[%emt 0:00:07]} 12. O-O {[%emt 0:00:11]} f5 {[%emt 0:00:25]} 13. Re1 {[%emt 0:08:54]} Ne5 {[%emt 0:11:08]} 14. f4 {[%emt 0:14:35]} Ng4 {[%emt 0:02:08]} 15. e4 {[%emt 0:00:49]} fxe4 {[%emt 0:02:07]} 16. Rxe4 {[%emt 0:00:28]} Qc7 {[%emt 0:15:17]} 17. h3 {[%emt 0:02:56]} Nf6 {[%emt 0:02:06]} 18. Re1 {[%emt 0:01:09]} Bd7 {[%emt 0:07:14]} 19. Bd2 {[%emt 0:00:27]} Rae8 {[%emt 0:00:06]} 20. Qc2 {[%emt 0:00:17]} Qc8 {[%emt 0:01:55]} 21. Kh2 {[%emt 0:13:54]} Bf5 {[%emt 0:01:40]} 22. Qc4 {[%emt 0:00:05]} Rxe1 {[%emt 0:08:20]} 23. Rxe1 {[%emt 0:00:07]} Re8 {[%emt 0:00:07]} 24. b4 {[%emt 0:06:39]} Rxe1 {[%emt 0:05:40]} 25. Bxe1 {[%emt 0:00:04]} Qe8 {[%emt 0:02:01]} 26. Bc3 {[%emt 0:11:43]} b5 {[%emt 0:01:41]} 27. Qf1 {[%emt 0:00:04]} c4 {[%emt 0:00:28]} 28. Bxf6 {[%emt 0:05:59]} gxf6 {[%emt 0:00:07]} 29. Qa1 {[%emt 0:00:02]} Kf7 {[%emt 0:05:18]} 30. Qd4 {[%emt 0:00:21]} Qe7 {[%emt 0:02:34]} 31. g4 {[%emt 0:00:33]} Bd3 {[%emt 0:00:53]} 32. Bf3 {[%emt 0:00:52]} h6 {[%emt 0:07:19]} 33. h4 {[%emt 0:00:26]} Kg8 {[%emt 0:02:18]} 34. Kg2 {[%emt 0:00:56]} Qe1 {[%emt 0:04:27]} 35. Qf2 {[%emt 0:00:47]} Qxb4 {[%emt 0:03:21]} 36. Qe3 {[%emt 0:00:04]} Kf8 {[%emt 0:01:34]} 37. Qe6 {[%emt 0:00:13]} Qb2+ {[%emt 0:00:28]} 38. Kg3 {[%emt 0:00:11]} Qd4 {[%emt 0:00:34]} 39. Qxd6+ {[%emt 0:00:55]} Kf7 {[%emt 0:00:29]} 40. Qe6+ {[%emt 0:00:00]} Kg7 {[%emt 0:00:00]} 41. Qe7+ {[%emt 0:08:42]} Kg8 {[%emt 0:00:58]} 42. d6 {[%emt 0:02:10]} Qg1+ {[%emt 0:00:32]} 43. Bg2 {[%emt 0:00:08]} Bf1 {[%emt 0:01:36]} 44. Qd8+ {[%emt 0:01:08]} Kf7 {[%emt 0:00:53]} 45. Qc7+ {[%emt 0:00:22]} Kf8 {[%emt 0:00:21]} 46. Qc8+ {[%emt 0:00:28]} Kf7 {[%emt 0:00:36]} 47. Qb7+ {[%emt 0:00:10]} Kf8 {[%emt 0:00:12]} 48. Qa8+ {[%emt 0:01:10]} 1/2-1/2

[Event "Reykjavik Open 2022"]
[Site "Reykjavik"]
[Date "2022.04.08"]
[Round "4.11"]
[White "Korley, Kassa"]
[Black "Steingrimsson, Hedinn"]
[Result "0-1"]
[ECO "E04"]
[WhiteElo "2399"]
[BlackElo "2535"]
[Annotator "RC"]
[PlyCount "60"]
[EventDate "2022.04.06"]
[EventCountry "ISL"]
[SourceTitle "playchess.com"]
[Source "ChessBase"]
[SourceQuality "1"]
[TimeControl "40/5400+30:1800+30"]

1. d4 {[%emt 0:00:03]} Nf6 {[%emt 0:04:41]} 2. c4 {[%emt 0:00:18]} e6 {[%emt 0:00:03]} 3. Nf3 {[%emt 0:00:08]} d5 {[%emt 0:00:05]} 4. g3 {[%emt 0:00:07]} dxc4 {[%emt 0:00:30]} 5. Bg2 {[%emt 0:00:23]} a6 {[%emt 0:01:35]} 6. O-O {[%emt 0:01:26]} Nc6 {[%emt 0:00:06]} 7. Be3 {[%emt 0:08:56]} Nd5 {[%emt 0:01:49]} 8. Qc1 {[%emt 0:05:58]} Nxe3 {[%emt 0:08:14]} 9. Qxe3 {[%emt 0:05:50]} Nb4 {[%emt 0:09:23]} 10. Qc1 {[%emt 0:09:28]} b5 {[%emt 0:12:43]} 11. Ne5 {[%emt 0:05:19]} Rb8 {[%emt 0:01:01]} 12. a3 {[%emt 0:03:57]} f6 {[%emt 0:00:14]} 13. Nxc4 {[%emt 0:03:39]} bxc4 {[%emt 0:00:04]} 14. axb4 {[%emt 0:00:20]} Qxd4 {[%emt 0:05:39]} 15. Rd1 {[%emt 0:07:59]} Qb6 {[%emt 0:01:56]} 16. Nd2 {[%emt 0:08:34]} Bxb4 {[%emt 0:07:26]} 17. Nxc4 {[%emt 0:00:08]} Qc5 {[%emt 0:02:26]} 18. Qc2 {[%emt 0:02:33]} O-O {[%emt 0:02:11]} 19. Rac1 {[%emt 0:00:32]} a5 {[%emt 0:07:46]} 20. Be4 {[%emt 0:07:35]} h6 {[%emt 0:02:25]} 21. Qb3 {[%emt 0:09:57]} f5 {[%emt 0:14:20]} 22. Ne3 {[%emt 0:03:04]} Qe5 {[%emt 0:02:56]} 23. Bxf5 {[%emt 0:01:39]} Rxf5 {[%emt 0:01:42]} 24. Nxf5 {[%emt 0:00:07]} Qxf5 {[%emt 0:00:01]} 25. Rd8+ {[%emt 0:00:28]} Kh7 {[%emt 0:00:03]} 26. Rxc7 {[%emt 0:11:38]} Bb7 {[%emt 0:01:32]} 27. Rd1 {[%emt 0:01:00]} Bd5 {[%emt 0:04:20]} 28. Qe3 {[%emt 0:00:18]} Bd6 {[%emt 0:00:50]} 29. Rd7 {[%emt 0:00:27]} Rb3 {[%emt 0:02:43]} 30. Rxd5 {[%emt 0:01:07]} Qb1+ {[%emt 0:00:45]} 0-1

[Event "Reykjavik Open 2022"]
[Site "Reykjavik"]
[Date "2022.04.08"]
[Round "4.12"]
[White "Gretarsson, Hjorvar Steinn"]
[Black "Larkin, Vladyslav"]
[Result "1-0"]
[ECO "A20"]
[WhiteElo "2548"]
[BlackElo "2399"]
[Annotator "RC"]
[PlyCount "105"]
[EventDate "2022.04.06"]
[EventCountry "ISL"]
[SourceTitle "playchess.com"]
[Source "ChessBase"]
[SourceQuality "1"]
[TimeControl "40/5400+30:1800+30"]

1. c4 {[%emt 0:00:05]} e5 {[%emt 0:00:09]} 2. g3 {[%emt 0:00:17]} Nc6 {[%emt 0:00:27]} 3. Bg2 {[%emt 0:00:30]} Bc5 {[%emt 0:00:05]} 4. e3 {[%emt 0:01:05]} a6 {[%emt 0:00:50]} 5. Ne2 {[%emt 0:00:57]} Ba7 {[%emt 0:00:57]} 6. Nbc3 {[%emt 0:00:46]} d6 {[%emt 0:00:07]} 7. b3 {[%emt 0:01:31]} h5 {[%emt 0:07:37]} 8. d4 {[%emt 0:03:14]} h4 {[%emt 0:00:24]} 9. dxe5 {[%emt 0:06:51]} Nxe5 {[%emt 0:08:13]} 10. h3 {[%emt 0:01:21]} hxg3 {[%emt 0:00:14]} 11. Nxg3 {[%emt 0:00:17]} Ng6 {[%emt 0:08:56]} 12. Rg1 {[%emt 0:20:45]} Nf6 {[%emt 0:25:17]} 13. Bb2 {[%emt 0:05:06]} Nh4 {[%emt 0:07:16]} 14. Bh1 {[%emt 0:02:25]} Bxh3 {[%emt 0:01:29]} 15. Nd5 {[%emt 0:09:51]} Nxd5 {[%emt 0:02:32]} 16. Qxd5 {[%emt 0:01:22]} c6 {[%emt 0:00:57]} 17. Qe4+ {[%emt 0:01:53]} Be6 {[%emt 0:00:29]} 18. O-O-O {[%emt 0:04:09]} d5 {[%emt 0:03:03]} 19. Qe5 {[%emt 0:03:17]} Ng6 {[%emt 0:03:12]} 20. Qxg7 {[%emt 0:02:37]} Qa5 {[%emt 0:00:04]} 21. Qf6 {[%emt 0:07:30]} Bc5 {[%emt 0:06:20]} 22. Nf5 {[%emt 0:04:02]} Bxf5 {[%emt 0:00:39]} 23. Qxf5 {[%emt 0:00:56]} Ba3 {[%emt 0:00:05]} 24. Kb1 {[%emt 0:01:14]} Ne7 {[%emt 0:00:51]} 25. Qe5 {[%emt 0:07:33]} O-O-O {[%emt 0:02:48]} 26. Bxa3 {[%emt 0:01:49]} Qxa3 {[%emt 0:00:10]} 27. cxd5 {[%emt 0:01:03]} Qd6 {[%emt 0:12:11]} 28. Qxd6 {[%emt 0:01:47]} Rxd6 {[%emt 0:00:05]} 29. dxc6 {[%emt 0:00:20]} Rxd1+ {[%emt 0:00:04]} 30. Rxd1 {[%emt 0:00:05]} bxc6 {[%emt 0:00:01]} 31. Be4 {[%emt 0:01:46]} Rh2 {[%emt 0:00:46]} 32. Rd2 {[%emt 0:00:43]} Kc7 {[%emt 0:00:21]} 33. Kc2 {[%emt 0:01:05]} a5 {[%emt 0:00:14]} 34. Kd3 {[%emt 0:02:36]} f5 {[%emt 0:00:41]} 35. Bf3 {[%emt 0:00:09]} Ng6 {[%emt 0:00:05]} 36. Ke2 {[%emt 0:01:08]} Ne5 {[%emt 0:06:37]} 37. Rd4 {[%emt 0:00:26]} Nf7 {[%emt 0:00:18]} 38. Rc4 {[%emt 0:01:02]} Ne5 {[%emt 0:00:18]} 39. Rf4 {[%emt 0:01:30]} Nxf3 {[%emt 0:00:08]} 40. Kxf3 {[%emt 0:00:00]} Rh3+ {[%emt 0:00:00]} 41. Ke2 {[%emt 0:01:00]} Rh5 {[%emt 0:02:46]} 42. Rd4 {[%emt 0:10:08]} Rh3 {[%emt 0:00:45]} 43. Rd1 {[%emt 0:01:19]} Kb6 {[%emt 0:09:39]} 44. Rd4 {[%emt 0:01:26]} Kb5 {[%emt 0:00:56]} 45. Rf4 {[%emt 0:00:28]} Rh5 {[%emt 0:00:05]} 46. Kd3 {[%emt 0:00:29]} Kc5 {[%emt 0:01:32]} 47. Rc4+ {[%emt 0:00:53]} Kb5 {[%emt 0:00:07]} 48. Kd4 {[%emt 0:02:21]} Rh4+ {[%emt 0:00:40]} 49. f4 {[%emt 0:00:48]} Rh2 {[%emt 0:00:05]} 50. a4+ {[%emt 0:00:39]} Kb6 {[%emt 0:00:06]} 51. Ke5 {[%emt 0:01:00]} Rh5 {[%emt 0:00:38]} 52. Rc3 {[%emt 0:00:47]} Kc7 {[%emt 0:00:19]} 53. Kf6 {[%emt 0:01:21]} 1-0

[Event "Reykjavik Open 2022"]
[Site "Reykjavik"]
[Date "2022.04.08"]
[Round "4.13"]
[White "Mannion, Stephen R"]
[Black "Gupta, Abhijeet"]
[Result "0-1"]
[ECO "B90"]
[WhiteElo "2281"]
[BlackElo "2628"]
[Annotator "RC"]
[PlyCount "88"]
[EventDate "2022.04.06"]
[EventCountry "ISL"]
[SourceTitle "playchess.com"]
[Source "ChessBase"]
[SourceQuality "1"]
[TimeControl "40/5400+30:1800+30"]

1. e4 {[%emt 0:00:03]} c5 {[%emt 0:00:04]} 2. Nf3 {[%emt 0:00:06]} d6 {[%emt 0:00:03]} 3. d4 {[%emt 0:00:08]} cxd4 {[%emt 0:00:03]} 4. Nxd4 {[%emt 0:00:06]} Nf6 {[%emt 0:00:04]} 5. Nc3 {[%emt 0:00:08]} a6 {[%emt 0:00:05]} 6. Bd3 {[%emt 0:00:46]} Nbd7 {[%emt 0:00:11]} 7. O-O {[%emt 0:02:26]} g6 {[%emt 0:00:49]} 8. a4 {[%emt 0:01:50]} Bg7 {[%emt 0:00:05]} 9. Re1 {[%emt 0:06:56]} O-O {[%emt 0:00:25]} 10. Bg5 {[%emt 0:02:00]} Re8 {[%emt 0:02:20]} 11. Qd2 {[%emt 0:04:49]} Nc5 {[%emt 0:00:17]} 12. Rad1 {[%emt 0:05:36]} Bd7 {[%emt 0:02:19]} 13. b3 {[%emt 0:01:05]} Rc8 {[%emt 0:06:47]} 14. Bf1 {[%emt 0:13:48]} Qa5 {[%emt 0:11:40]} 15. Nde2 {[%emt 0:17:52]} h6 {[%emt 0:18:27]} 16. Be3 {[%emt 0:18:15]} Ng4 {[%emt 0:15:28]} 17. Bd4 {[%emt 0:00:11]} Bxd4 {[%emt 0:02:58]} 18. Qxd4 {[%emt 0:00:35]} Ne6 {[%emt 0:00:07]} 19. Qd3 {[%emt 0:01:22]} Qe5 {[%emt 0:01:00]} 20. Qg3 {[%emt 0:01:20]} Qxg3 {[%emt 0:01:04]} 21. hxg3 {[%emt 0:00:11]} Rc5 {[%emt 0:01:05]} 22. Rd5 {[%emt 0:04:10]} Rc6 {[%emt 0:02:21]} 23. Rd2 {[%emt 0:00:24]} Rec8 {[%emt 0:00:13]} 24. Nd5 {[%emt 0:01:03]} Rxc2 {[%emt 0:00:30]} 25. Nxe7+ {[%emt 0:03:38]} Kf8 {[%emt 0:00:09]} 26. Rxc2 {[%emt 0:00:12]} Rxc2 {[%emt 0:00:05]} 27. Nd5 {[%emt 0:00:03]} Rb2 {[%emt 0:00:06]} 28. f3 {[%emt 0:05:08]} Ne5 {[%emt 0:00:04]} 29. Nc1 {[%emt 0:01:11]} Nd4 {[%emt 0:01:42]} 30. Re3 {[%emt 0:00:05]} Be6 {[%emt 0:00:19]} 31. Rc3 {[%emt 0:03:44]} b5 {[%emt 0:02:13]} 32. axb5 {[%emt 0:00:34]} axb5 {[%emt 0:00:03]} 33. f4 {[%emt 0:00:56]} Ng4 {[%emt 0:00:38]} 34. Nc7 {[%emt 0:03:35]} b4 {[%emt 0:00:35]} 35. Nxe6+ {[%emt 0:00:25]} fxe6 {[%emt 0:00:37]} 36. Rc4 {[%emt 0:01:03]} Rb1 {[%emt 0:01:26]} 37. Rxd4 {[%emt 0:01:34]} Rxc1 {[%emt 0:00:09]} 38. Rd3 {[%emt 0:00:12]} Ke7 {[%emt 0:00:10]} 39. Rf3 {[%emt 0:00:39]} Rb1 {[%emt 0:00:12]} 40. Rd3 {[%emt 0:00:00]} h5 {[%emt 0:00:00]} 41. Rf3 {[%emt 0:00:48]} d5 {[%emt 0:01:03]} 42. exd5 {[%emt 0:03:31]} exd5 {[%emt 0:00:04]} 43. f5 {[%emt 0:01:00]} g5 {[%emt 0:00:40]} 44. Rd3 {[%emt 0:00:05]} Kf6 {[%emt 0:00:15]} 0-1